bitfinex/quotes_SOLUSD_20241024
["timestamp","ask_amount","ask_price","bid_price","bid_amount"]
[1729784607224,0.12549,176.86,176.84,34.67625636]
[1729784607399,0.12549,176.86,176.85,34.67625636]
[1729784608026,0.12549,176.86,176.84,34.67625636]
[1729784609325,0.12549,176.86,176.83,34.67625636]
[1729784609708,0.12549,176.86,176.84,34.67625636]
[1729784610728,0.12549,176.86,176.78,15.9465]
[1729784610729,0.12549,176.86,176.85,34.67625636]
[1729784610930,40.32895636,176.91,176.85,34.67625636]
[1729784611228,34.80174636,176.9,176.85,34.67625636]
[1729784611430,34.80174636,176.9,176.84,34.67625636]
[1729784611816,40.45484636,176.9,176.84,34.67625636]
[1729784612030,58.82961036,176.88,176.83,34.67625636]
[1729784612206,17.33812818,176.84,176.76,6.1391]
[1729784612413,24.153354,176.83,176.79,34.67625636]
[1729784612716,24.153354,176.83,176.81,34.67625636]
[1729784613103,24.027864,176.86,176.82,34.67625636]
[1729784613329,24.027864,176.86,176.85,34.67625636]
[1729784613500,40.32935636,176.9,176.85,34.67625636]
[1729784613501,5.6531,176.9,176.85,34.67625636]
[1729784613708,0.25098,176.89,176.85,34.67625636]
[1729784614228,34.92723636,176.89,176.84,34.67625636]
[1729784614426,34.92723636,176.89,176.81,34.67625636]
[1729784614427,0.12549,176.85,176.81,34.67625636]
[1729784614736,0.12549,176.85,176.76,40.81535636]
[1729784614737,0.25098,176.83,176.79,34.67625636]
[1729784614946,0.12549,176.82,176.79,34.67625636]
[1729784617151,0.25098,176.82,176.79,34.67625636]
[1729784617333,0.12549,176.8,176.76,34.67625636]
[1729784617522,0.25098,176.8,176.75,34.67625636]
[1729784618345,0.25098,176.8,176.76,34.67625636]
[1729784618938,0.25098,176.8,176.77,34.67625636]
[1729784619136,0.25098,176.8,176.69,0.1]
[1729784619137,0.25098,176.78,176.75,34.67625636]
[1729784619342,0.25098,176.78,176.74,34.67625636]
[1729784619555,0.12549,176.76,176.72,34.67625636]
[1729784620143,0.12549,176.73,176.69,34.67625636]
[1729784620447,0.12549,176.72,176.7,34.67625636]
[1729784621151,34.67625636,176.76,176.71,34.67625636]
[1729784621440,0.12549,176.72,176.68,34.67625636]
[1729784621817,0.12549,176.72,176.69,34.67625636]
[1729784622020,24.027864,176.71,176.66,34.67625636]
[1729784622219,0.12549,176.7,176.65,34.67625636]
[1729784622429,24.027864,176.69,176.64,34.67625636]
[1729784622831,0.12549,176.68,176.64,34.67625636]
[1729784623043,34.80174636,176.68,176.63,34.67625636]
[1729784623347,0.12549,176.67,176.63,34.67625636]
[1729784623844,0.25098,176.66,176.62,34.67625636]
[1729784624047,0.12549,176.65,176.62,34.67625636]
[1729784624544,0.12549,176.65,176.63,34.67625636]
[1729784624843,0.12549,176.65,176.62,34.67625636]
[1729784625637,0.12549,176.65,176.61,34.67625636]
[1729784625832,58.70412036,176.63,176.58,34.67625636]
[1729784626048,0.12549,176.61,176.57,34.67625636]
[1729784626541,0.12549,176.61,176.56,34.67625636]
[1729784626542,34.92723636,176.61,176.56,34.67625636]
[1729784626944,0.25098,176.59,176.54,34.67625636]
[1729784627345,34.92723636,176.59,176.54,34.67625636]
[1729784627649,0.25098,176.59,176.52,15.2052]
[1729784627947,0.25098,176.56,176.48,6.2294]
[1729784628149,24.153354,176.56,176.51,34.67625636]
[1729784628534,0.25098,176.54,176.5,34.67625636]
[1729784628730,24.027864,176.54,176.51,34.67625636]
[1729784628931,0.25098,176.54,176.51,34.67625636]
[1729784632347,0.25098,176.54,176.45,6.01418817]
[1729784632348,34.92723636,176.54,176.45,5.91418817]
[1729784632584,0.12549,176.5,176.47,34.67625636]
[1729784633255,0.12549,176.5,176.48,34.67625636]
[1729784634142,0.12549,176.5,176.47,34.67625636]
[1729784634547,34.92723636,176.5,176.45,17.33812818]
[1729784634736,0.25098,176.5,176.46,34.67625636]
[1729784636355,34.92723636,176.5,176.45,34.67625636]
[1729784636656,0.12549,176.5,176.49,34.67625636]
[1729784637036,0.25098,176.5,176.48,34.67625636]
[1729784637757,0.12549,176.53,176.49,34.67625636]
[1729784637933,34.67625636,176.56,176.51,34.67625636]
[1729784638333,34.80174636,176.53,176.44,25.91252419]
[1729784638534,34.80174636,176.53,176.48,34.67625636]
[1729784639251,24.027864,176.52,176.48,34.67625636]
[1729784639653,0.25098,176.52,176.48,34.67625636]
[1729784639950,0.25098,176.52,176.49,34.67625636]
[1729784640157,34.67625636,176.57,176.51,34.67625636]
[1729784641141,0.12549,176.56,176.51,34.67625636]
[1729784641340,0.25098,176.56,176.51,34.67625636]
[1729784641542,0.12549,176.55,176.51,34.67625636]
[1729784641742,34.67625636,176.57,176.52,34.67625636]
[1729784641960,41.28365636,176.58,176.53,34.67625636]
[1729784642147,0.12549,176.57,176.53,34.67625636]
[1729784642458,34.80174636,176.57,176.52,34.67625636]
[1729784642848,0.12549,176.57,176.53,34.67625636]
[1729784643056,24.153354,176.57,176.53,34.67625636]
[1729784643849,24.153354,176.57,176.54,34.67625636]
[1729784644048,24.153354,176.57,176.53,34.67625636]
[1729784647741,24.153354,176.57,176.54,34.67625636]
[1729784648256,24.153354,176.57,176.55,34.67625636]
[1729784648462,0.37647,176.57,176.55,34.67625636]
[1729784649461,0.37647,176.57,176.56,34.67625636]
[1729784650160,0.25098,176.57,176.56,34.67625636]
[1729784650358,6.0149,176.62,176.56,34.67625636]
[1729784650543,21.2224,176.63,176.6,34.67625636]
[1729784650741,15.5608,176.63,176.6,34.67625636]
[1729784651262,0.12549,176.62,176.6,34.67625636]
[1729784651467,6.0462,176.66,176.61,34.67625636]
[1729784651647,16.2606,176.67,176.65,34.67625636]
[1729784651959,0.12549,176.68,176.65,34.67625636]
[1729784652546,6.4084,176.7,176.67,34.67625636]
[1729784652857,15.9902,176.71,176.69,34.67625636]
[1729784653044,34.67625636,176.72,176.67,34.67625636]
[1729784653368,34.80174636,176.71,176.66,34.67625636]
[1729784653551,0.12549,176.69,176.64,34.67625636]
[1729784654239,0.12549,176.67,176.64,34.67625636]
[1729784655548,0.12549,176.65,176.62,34.67625636]
[1729784659165,24.027864,176.62,176.58,34.67625636]
[1729784659361,58.70412036,176.6,176.55,34.67625636]
[1729784659578,24.027864,176.6,176.56,34.67625636]
[1729784659868,0.25098,176.6,176.56,34.67625636]
[1729784660163,0.25098,176.6,176.57,34.67625636]
[1729784661141,23.902374,176.59,176.55,34.67625636]
[1729784661342,0.25098,176.58,176.56,34.67625636]
[1729784663149,0.25098,176.58,176.55,34.67625636]
[1729784663359,0.25098,176.58,176.54,34.67625636]
[1729784663748,0.25098,176.58,176.55,34.67625636]
[1729784664144,0.25098,176.58,176.54,34.67625636]
[1729784664668,0.25098,176.58,176.55,34.67625636]
[1729784665375,0.25098,176.58,176.56,34.67625636]
[1729784665674,0.25098,176.58,176.55,34.67625636]
[1729784666351,0.25098,176.58,176.56,34.67625636]
[1729784668966,0.12549,176.58,176.57,34.67625636]
[1729784669156,24.027864,176.62,176.57,34.67625636]
[1729784669362,0.12549,176.59,176.55,34.67625636]
[1729784669663,0.12549,176.58,176.56,34.67625636]
[1729784670668,0.12549,176.58,176.55,34.67625636]
[1729784671469,0.25098,176.58,176.55,34.67625636]
[1729784673774,0.25098,176.57,176.55,34.67625636]
[1729784674071,0.12549,176.56,176.54,34.67625636]
[1729784674250,0.25098,176.56,176.54,34.67625636]
[1729784675475,24.153354,176.56,176.55,34.67625636]
[1729784676250,24.153354,176.56,176.55,22.18549642]
[1729784676471,24.153354,176.56,176.54,22.18549642]
[1729784676970,0.37647,176.56,176.54,22.18549642]
[1729784681981,0.12549,176.54,176.48,20.0]
[1729784682180,0.37647,176.54,176.53,22.18549642]
[1729784686259,0.37647,176.54,176.52,22.18549642]
[1729784686788,0.37647,176.54,176.53,22.18549642]
[1729784688964,24.027864,176.53,176.5,22.18549642]
[1729784689379,0.25098,176.53,176.5,22.18549642]
[1729784689577,0.12549,176.53,176.5,22.18549642]
[1729784689892,0.25098,176.53,176.51,22.18549642]
[1729784692186,0.25098,176.53,176.5,22.18549642]
[1729784692613,0.25098,176.51,176.45,20.0]
[1729784692785,0.12549,176.51,176.49,22.18549642]
[1729784693664,0.12549,176.51,176.5,22.18549642]
[1729784694287,5.6632,176.58,176.5,22.18549642]
[1729784694471,46.21336042,176.57,176.52,22.18549642]
[1729784694671,24.153354,176.55,176.5,22.18549642]
[1729784695169,35.24610221,176.55,176.5,22.18549642]
[1729784695369,46.33885042,176.55,176.5,22.18549642]
[1729784695572,24.153354,176.55,176.5,22.18549642]
[1729784698078,24.153354,176.55,176.53,22.18549642]
[1729784698267,0.37647,176.55,176.52,22.18549642]
[1729784698469,0.37647,176.55,176.51,22.18549642]
[1729784699073,22.56196642,176.55,176.5,22.18549642]
[1729784699274,0.37647,176.53,176.5,22.18549642]
[1729784700195,0.37647,176.53,176.48,22.18549642]
[1729784700485,0.37647,176.51,176.48,22.18549642]
[1729784700668,0.37647,176.51,176.43,0.5907256]
[1729784700873,0.37647,176.51,176.48,22.18549642]
[1729784701789,0.37647,176.51,176.5,22.18549642]
[1729784702088,22.31098642,176.57,176.5,22.18549642]
[1729784702397,0.12549,176.53,176.52,22.18549642]
[1729784702570,0.12549,176.54,176.52,22.18549642]
[1729784702970,0.25098,176.55,176.52,22.18549642]
[1729784703195,0.12549,176.54,176.52,22.18549642]
[1729784704901,2.32773115,176.63,176.53,22.18549642]
[1729784705078,5.662,176.62,176.58,22.18549642]
[1729784705277,23.0506,176.63,176.59,22.18549642]
[1729784705686,0.12549,176.62,176.59,22.18549642]
[1729784705993,0.12549,176.62,176.58,22.18549642]
[1729784706166,50.89769642,176.63,176.58,22.18549642]
[1729784706874,28.7122,176.63,176.58,22.18549642]
[1729784707093,50.89769642,176.63,176.58,22.18549642]
[1729784707396,23.902374,176.62,176.59,22.18549642]
[1729784707627,0.12549,176.6,176.59,22.18549642]
[1729784707785,0.25098,176.6,176.59,22.18549642]
[1729784707979,0.37647,176.6,176.59,22.18549642]
[1729784709997,0.12549,176.58,176.53,11.09274821]
[1729784710176,0.12549,176.56,176.52,22.18549642]
[1729784710890,0.12549,176.54,176.45,16.3898]
[1729784711087,0.12549,176.52,176.49,22.18549642]
[1729784711478,0.12549,176.52,176.5,22.18549642]
[1729784712171,0.12549,176.52,176.49,22.18549642]
[1729784712375,0.12549,176.52,176.5,22.18549642]
[1729784713405,0.12549,176.52,176.51,22.18549642]
[1729784714080,0.12549,176.52,176.5,22.18549642]
[1729784715003,0.12549,176.5,176.44,20.0]
[1729784715188,0.12549,176.5,176.47,22.18549642]
[1729784717992,0.12549,176.5,176.48,22.18549642]
[1729784718495,0.12549,176.5,176.47,22.18549642]
[1729784720406,0.12549,176.5,176.48,22.18549642]
[1729784720710,0.12549,176.5,176.47,22.18549642]
[1729784721097,0.12549,176.5,176.43,0.5907256]
[1729784721298,24.153354,176.48,176.44,22.18549642]
[1729784722311,46.33885042,176.48,176.43,22.77622202]
[1729784722625,24.153354,176.45,176.43,0.5907256]
[1729784722917,22.31098642,176.44,176.43,0.5907256]
[1729784723095,46.33885042,176.44,176.43,0.5907256]
[1729784723412,46.43885042,176.44,176.43,0.4653256]
[1729784723614,46.53885042,176.44,176.43,0.4653256]
[1729784723787,24.253354,176.43,176.28,15.5116]
[1729784723983,24.153354,176.37,176.33,22.18549642]
[1729784724383,0.37647,176.37,176.34,34.75240044]
[1729784724607,17.37620022,176.43,176.36,34.75240044]
[1729784724814,24.027864,176.43,176.39,34.75240044]
[1729784725190,0.12549,176.42,176.39,34.75240044]
[1729784725389,0.12549,176.42,176.31,34.95240044]
[1729784725390,34.87789044,176.42,176.37,34.75240044]
[1729784725690,0.12549,176.39,176.37,34.75240044]
[1729784725895,0.12549,176.38,176.37,34.75240044]
[1729784726311,0.12549,176.4,176.37,34.75240044]
[1729784726500,0.12549,176.4,176.39,34.75240044]
[1729784726705,0.25098,176.4,176.38,34.75240044]
[1729784728021,15.8784,176.44,176.39,34.75240044]
[1729784728329,0.12549,176.43,176.42,34.75240044]
[1729784728688,6.0745,176.47,176.42,34.75240044]
[1729784728902,57.03740044,176.49,176.44,34.75240044]
[1729784729093,0.12549,176.48,176.44,34.75240044]
[1729784729705,40.54419044,176.48,176.43,34.75240044]
[1729784729904,0.12549,176.46,176.44,34.75240044]
[1729784730214,0.12549,176.46,176.42,34.75240044]
[1729784730917,0.12549,176.46,176.43,34.75240044]
[1729784731124,0.12549,176.46,176.42,34.75240044]
[1729784731293,0.12549,176.46,176.43,34.75240044]
[1729784732500,0.12549,176.46,176.44,34.75240044]
[1729784732703,0.12549,176.46,176.43,34.75240044]
[1729784733213,0.12549,176.46,176.42,34.75240044]
[1729784733919,0.12549,176.46,176.43,34.75240044]
[1729784734610,0.12549,176.44,176.41,34.75240044]
[1729784735122,0.12549,176.44,176.4,34.75240044]
[1729784735312,0.12549,176.44,176.41,34.75240044]
[1729784735514,0.12549,176.44,176.42,34.75240044]
[1729784736618,0.12549,176.44,176.43,34.75240044]
[1729784737201,0.12549,176.45,176.43,34.75240044]
[1729784737410,0.12549,176.45,176.4,34.75240044]
[1729784737411,0.12549,176.45,176.44,34.75240044]
[1729784739413,0.12549,176.48,176.42,34.75240044]
[1729784739414,24.153354,176.46,176.42,34.75240044]
[1729784740112,24.153354,176.46,176.43,34.75240044]
[1729784740515,24.153354,176.46,176.44,34.75240044]
[1729784741811,0.37647,176.46,176.44,34.75240044]
[1729784743032,0.37647,176.46,176.43,34.75240044]
[1729784743327,0.37647,176.46,176.42,34.75240044]
[1729784743502,0.37647,176.44,176.42,34.75240044]
[1729784744603,0.37647,176.44,176.43,34.75240044]
[1729784745042,16.6189,176.49,176.43,34.75240044]
[1729784745205,6.0443,176.51,176.47,34.75240044]
[1729784745535,0.12549,176.5,176.46,34.75240044]
[1729784746022,0.12549,176.5,176.47,34.75240044]
[1729784746226,20.6819,176.53,176.48,34.75240044]
[1729784746525,0.12549,176.52,176.49,34.75240044]
[1729784747135,5.79059,176.52,176.49,34.75240044]
[1729784747307,5.79059,176.52,176.48,34.75240044]
[1729784747508,0.12549,176.5,176.48,34.75240044]
[1729784747704,0.12549,176.49,176.48,34.75240044]
[1729784747901,24.153354,176.49,176.47,34.75240044]
[1729784748604,0.12549,176.46,176.44,34.75240044]
[1729784748805,0.12549,176.46,176.4,16.6529]
[1729784748806,0.12549,176.46,176.43,34.75240044]
[1729784749016,34.87789044,176.46,176.41,34.75240044]
[1729784749228,0.12549,176.44,176.41,34.75240044]
[1729784749726,0.12549,176.44,176.43,34.75240044]
[1729784750029,0.12549,176.44,176.36,22.7026]
[1729784750030,0.12549,176.44,176.42,34.75240044]
[1729784750402,0.12549,176.44,176.43,34.75240044]
[1729784750811,0.12549,176.44,176.41,34.75240044]
[1729784751128,0.12549,176.44,176.42,34.75240044]
[1729784752107,0.12549,176.44,176.36,22.7026]
[1729784752108,0.12549,176.44,176.43,34.75240044]
[1729784753929,0.12549,176.45,176.43,34.75240044]
[1729784754142,0.12549,176.45,176.44,34.75240044]
[1729784755514,0.12549,176.45,176.43,34.75240044]
[1729784756124,0.37647,176.46,176.43,34.75240044]
[1729784756940,0.37647,176.44,176.41,34.75240044]
[1729784757952,0.37647,176.44,176.43,34.75240044]
[1729784759826,0.37647,176.44,176.42,34.75240044]
[1729784760738,0.37647,176.44,176.43,34.75240044]
[1729784761244,0.37647,176.44,176.42,34.75240044]
[1729784763645,0.37647,176.44,176.41,34.75240044]
[1729784763845,40.79647044,176.44,176.39,34.75240044]
[1729784764026,0.25098,176.4,176.39,34.75240044]
[1729784766425,0.25098,176.4,176.39,22.22418784]
[1729784766651,0.25098,176.4,176.32,21.90963195]
[1729784766942,0.25098,176.39,176.38,22.22418784]
[1729784767328,0.37647,176.39,176.37,22.22418784]
[1729784767545,0.12549,176.37,176.36,22.22418784]
[1729784767749,0.25098,176.37,176.36,22.22418784]
[1729784770162,24.153354,176.37,176.32,15.9956]
[1729784770456,0.25098,176.35,176.29,15.7899]
[1729784770750,0.25098,176.35,176.27,6.0971]
[1729784770751,0.25098,176.35,176.31,34.7437715]
[1729784770925,0.25098,176.33,176.31,34.7437715]
[1729784771129,0.12549,176.32,176.31,34.7437715]
[1729784771328,23.776884,176.35,176.31,34.7437715]
[1729784771532,0.25098,176.35,176.33,34.7437715]
[1729784771734,0.12549,176.34,176.33,34.7437715]
[1729784771940,0.37647,176.34,176.33,34.7437715]
[1729784772646,0.12549,176.33,176.32,34.7437715]
[1729784773149,23.776884,176.36,176.32,34.7437715]
[1729784773356,23.776884,176.36,176.27,0.1]
[1729784773357,23.902374,176.36,176.35,34.7437715]
[1729784773662,40.4120715,176.42,176.35,34.7437715]
[1729784773830,0.12549,176.39,176.37,34.7437715]
[1729784774143,34.7437715,176.42,176.37,34.7437715]
[1729784774353,0.12549,176.39,176.36,34.7437715]
[1729784774738,24.153354,176.39,176.35,34.7437715]
[1729784775749,34.7437715,176.38,176.33,34.7437715]
[1729784775945,24.153354,176.35,176.31,34.7437715]
[1729784776336,24.153354,176.35,176.32,34.7437715]
[1729784776733,58.8971255,176.35,176.3,34.7437715]
[1729784777336,23.902374,176.3,176.26,35.3344971]
[1729784777536,24.027864,176.3,176.26,35.3344971]
[1729784778061,0.12549,176.29,176.26,0.5907256]
[1729784778349,0.12549,176.29,176.26,35.3344971]
[1729784780961,0.12549,176.28,176.26,0.5907256]
[1729784781249,0.12549,176.27,176.26,0.5907256]
[1729784781461,0.12549,176.27,176.26,35.3344971]
[1729784781635,0.25098,176.27,176.26,0.5907256]
[1729784781833,58.8971255,176.27,176.26,0.5907256]
[1729784783040,64.5702255,176.27,176.26,0.5907256]
[1729784783238,29.826454,176.27,176.26,0.5907256]
[1729784783438,24.153354,176.27,176.26,0.5907256]
[1729784783741,40.4152715,176.32,176.26,35.3344971]
[1729784784049,0.12549,176.29,176.26,0.5907256]
[1729784784650,0.12549,176.3,176.26,35.3344971]
[1729784784837,24.153354,176.3,176.26,35.3344971]
[1729784786443,24.153354,176.3,176.26,34.7437715]
[1729784786761,24.153354,176.3,176.26,35.1084487]
[1729784787662,24.153354,176.3,176.27,34.7437715]
[1729784788761,24.153354,176.3,176.26,35.1084487]
[1729784790660,64.5693255,176.3,176.26,0.3646772]
[1729784791242,58.8971255,176.27,176.26,0.3646772]
[1729784792347,64.5702255,176.27,176.26,0.3646772]
[1729784794168,24.153354,176.27,176.26,0.3646772]
[1729784794344,24.153354,176.27,176.26,35.1084487]
[1729784794545,5.6721,176.3,176.26,35.1084487]
[1729784794746,40.4154715,176.32,176.27,34.7437715]
[1729784795049,34.7437715,176.31,176.26,35.1084487]
[1729784795372,34.8692615,176.3,176.26,0.3646772]
[1729784795673,0.12549,176.3,176.26,35.1084487]
[1729784796044,34.8692615,176.3,176.26,0.3646772]
[1729784796444,0.12549,176.28,176.26,0.3646772]
[1729784798361,24.153354,176.27,176.26,0.3646772]
[1729784810579,22.2651168,176.36,176.26,22.629794]
[1729784810777,0.12549,176.35,176.31,22.2651168]
[1729784810968,22.2651168,176.33,176.28,22.2651168]
[1729784811162,22.2651168,176.33,176.26,0.3646772]
[1729784811366,0.12549,176.3,176.28,22.2651168]
[1729784811573,0.12549,176.3,176.29,22.2651168]
[1729784811759,21.6515,176.37,176.29,22.2651168]
[1729784811964,21.6515,176.37,176.34,22.2651168]
[1729784812259,0.12549,176.36,176.34,34.75237384]
[1729784812462,27.3215,176.37,176.32,34.75237384]
[1729784812662,0.12549,176.36,176.31,34.75237384]
[1729784812874,34.87786384,176.36,176.31,34.75237384]
[1729784813080,24.153354,176.34,176.3,34.75237384]
[1729784813271,0.12549,176.32,176.28,34.75237384]
[1729784813469,24.153354,176.32,176.27,34.75237384]
[1729784813861,24.153354,176.32,176.28,34.75237384]
[1729784814083,58.90572784,176.32,176.27,34.75237384]
[1729784814470,24.153354,176.32,176.28,34.75237384]
[1729784814677,24.153354,176.32,176.29,34.75237384]
[1729784814865,0.37647,176.32,176.29,34.75237384]
[1729784815067,0.37647,176.32,176.31,34.75237384]
[1729784815470,5.6706,176.35,176.31,34.75237384]
[1729784815676,5.6702,176.36,176.33,34.75237384]
[1729784816481,0.12549,176.35,176.33,34.75237384]
[1729784816873,24.153354,176.35,176.33,34.75237384]
[1729784817485,0.37647,176.35,176.34,34.75237384]
[1729784817663,0.37647,176.35,176.33,34.75237384]
[1729784818059,0.37647,176.35,176.34,34.75237384]
[1729784818261,5.6693,176.39,176.34,34.75237384]
[1729784818487,0.12549,176.38,176.35,34.75237384]
[1729784818871,5.79509,176.38,176.35,34.75237384]
[1729784819076,0.12549,176.37,176.34,34.75237384]
[1729784819382,24.153354,176.37,176.34,34.75237384]
[1729784819585,24.153354,176.37,176.36,34.75237384]
[1729784819773,5.6696,176.38,176.35,34.75237384]
[1729784820699,0.12549,176.37,176.34,34.75237384]
[1729784820865,0.12549,176.36,176.34,34.75237384]
[1729784821367,0.25098,176.36,176.35,34.75237384]
[1729784821567,0.37647,176.36,176.35,34.75237384]
[1729784821869,0.37647,176.36,176.34,34.75237384]
[1729784821870,0.12549,176.35,176.34,34.75237384]
[1729784822090,0.12549,176.35,176.33,34.75237384]
[1729784822589,34.87786384,176.35,176.32,0.3646772]
[1729784822795,0.12549,176.33,176.32,35.11705104]
[1729784823290,0.12549,176.33,176.32,0.3646772]
[1729784823886,0.12549,176.33,176.32,35.11705104]
[1729784824382,0.12549,176.33,176.32,0.3646772]
[1729784824972,0.12549,176.33,176.32,35.11705104]
[1729784825496,0.12549,176.33,176.32,0.3646772]
[1729784826984,5.79659,176.33,176.32,0.3646772]
[1729784827189,64.57682784,176.33,176.32,0.3646772]
[1729784828993,24.153354,176.33,176.32,0.3646772]
[1729784829366,29.824454,176.33,176.32,0.3646772]
[1729784829570,5.92208,176.33,176.32,0.3646772]
[1729784830597,0.25098,176.33,176.32,0.3646772]
[1729784830976,24.153354,176.33,176.32,35.11705104]
[1729784831377,24.153354,176.33,176.32,0.3646772]
[1729784834374,57.11717384,176.39,176.32,35.11705104]
[1729784834580,57.21717384,176.39,176.33,34.75237384]
[1729784834778,34.87786384,176.38,176.33,34.75237384]
[1729784835500,34.87786384,176.34,176.32,0.3646772]
[1729784835674,58.90572784,176.33,176.32,0.3646772]
[1729784836482,64.57682784,176.33,176.32,0.3646772]
[1729784839107,91.50266476,176.33,176.32,7.72e-05]
[1729784839983,87.26682784,176.33,176.32,7.72e-05]
[1729784840297,91.50326293,176.33,176.32,7.72e-05]
[1729784841990,0.12549,176.3,176.21,34.75237384]
[1729784842185,24.153354,176.26,176.21,34.75237384]
[1729784843393,29.826954,176.26,176.21,34.75237384]
[1729784844710,24.153354,176.24,176.2,34.75237384]
[1729784845125,58.90572784,176.24,176.19,34.75237384]
[1729784845405,24.153354,176.24,176.2,34.75237384]
[1729784845607,24.153354,176.22,176.2,34.75237384]
[1729784845806,24.153354,176.2,176.15,0.5979635]
[1729784846011,58.90572784,176.2,176.15,35.35033734]
[1729784846791,58.90572784,176.18,176.15,0.5979635]
[1729784847006,0.37647,176.16,176.15,0.5979635]
[1729784847316,81.26052784,176.16,176.15,0.3471635]
[1729784847610,107.13712784,176.16,176.15,0.2217635]
[1729784847789,107.13712784,176.16,176.0,15.7383]
[1729784847790,0.22549,176.12,176.0,15.7383]
[1729784848117,58.65474784,176.09,176.04,34.75237384]
[1729784848409,23.902374,176.09,176.05,34.75237384]
[1729784848913,29.581374,176.09,176.05,34.75237384]
[1729784849417,0.12549,176.06,176.02,34.75237384]
[1729784849598,0.25098,176.06,176.05,34.75237384]
[1729784849911,23.776884,176.07,176.05,34.75237384]
[1729784850112,24.153354,176.07,176.06,34.75237384]
[1729784851300,23.902374,176.12,176.06,34.75237384]
[1729784851491,23.776884,176.13,176.1,34.75237384]
[1729784851817,0.12549,176.13,176.09,34.75237384]
[1729784852613,34.75237384,176.18,176.12,34.75237384]
[1729784853111,5.6759,176.19,176.15,34.75237384]
[1729784853321,5.6759,176.19,176.09,16.4596]
[1729784853322,5.6753,176.2,176.16,34.75237384]
[1729784853697,0.12549,176.19,176.15,34.75237384]
[1729784854399,34.75237384,176.16,176.09,16.4596]
[1729784854593,24.153354,176.13,176.08,34.75237384]
[1729784854803,58.90572784,176.13,176.08,34.75237384]
[1729784855596,24.153354,176.13,176.08,34.75237384]
[1729784856095,24.153354,176.13,176.09,34.75237384]
[1729784857302,29.830954,176.13,176.08,34.75237384]
[1729784857515,64.58332784,176.13,176.08,34.75237384]
[1729784858025,29.830954,176.13,176.08,34.75237384]
[1729784859120,29.830954,176.13,176.09,34.75237384]
[1729784859320,24.153354,176.13,176.09,34.75237384]
[1729784859694,23.776884,176.12,176.09,34.75237384]
[1729784859896,0.12549,176.1,176.09,34.75237384]
[1729784861817,0.12549,176.1,176.08,34.75237384]
[1729784862628,0.12549,176.1,176.09,34.75237384]
[1729784863531,0.12549,176.1,176.08,34.75237384]
[1729784864911,0.12549,176.1,176.09,34.75237384]
[1729784865928,0.12549,176.1,176.09,29.75237384]
[1729784866433,0.12549,176.1,176.08,34.75237384]
[1729784866609,0.12549,176.08,176.02,34.75237384]
[1729784866811,58.90572784,176.06,176.01,34.75237384]
[1729784867011,24.027864,176.04,175.99,34.75237384]
[1729784867446,0.12549,176.03,175.99,34.75237384]
[1729784867611,0.12549,176.01,175.94,15.1537]
[1729784867810,0.12549,175.99,175.97,35.35033734]
[1729784868010,58.90572784,175.98,175.97,0.5979635]
[1729784868228,64.99553784,175.98,175.87,5.90620934]
[1729784868420,0.12549,175.95,175.91,34.75237384]
[1729784868619,0.12549,175.98,175.94,34.75237384]
[1729784868820,50.68537384,176.0,175.95,34.75237384]
[1729784869025,50.68537384,176.0,175.94,34.75237384]
[1729784869219,0.12549,175.99,175.94,34.75237384]
[1729784869548,34.87786384,175.95,175.83,8.63134432]
[1729784869717,0.12549,175.92,175.88,34.75237384]
[1729784870038,0.12549,175.89,175.84,34.75237384]
[1729784870337,24.027864,175.87,175.83,34.75237384]
[1729784870630,0.12549,175.86,175.83,34.75237384]
[1729784871133,0.25098,175.86,175.85,34.75237384]
[1729784871445,0.37647,175.86,175.85,34.75237384]
[1729784871617,0.12549,175.85,175.79,0.5979635]
[1729784871816,0.12549,175.85,175.82,34.75237384]
[1729784872129,0.37647,175.86,175.82,34.75237384]
[1729784872330,0.12549,175.85,175.82,34.75237384]
[1729784872537,0.25098,175.84,175.82,34.75237384]
[1729784874231,0.12549,175.82,175.79,0.5979635]
[1729784874543,0.12549,175.81,175.79,0.5979635]
[1729784874838,24.153354,175.81,175.8,34.75237384]
[1729784875908,24.153354,175.8,175.79,35.35033734]
[1729784876318,0.1,175.91,175.79,35.35033734]
[1729784876548,34.75237384,175.88,175.83,34.75237384]
[1729784876744,34.75237384,175.89,175.83,34.75237384]
[1729784877042,0.12549,175.87,175.82,34.75237384]
[1729784877642,24.153354,175.87,175.82,34.75237384]
[1729784877845,0.37647,175.87,175.84,34.75237384]
[1729784878048,0.12549,175.87,175.84,34.75237384]